Workbook

Sheet Sheet1
A1: 洪江市铁山乡2025年耕地地力保护补贴公示名单
A2: 序号 | B2: 补贴事项 | C2: 姓名 | D2: 受理村 | E2: 补贴面积（亩） | F2: 补贴标准（元/亩） | G2: 补贴金额（元）
A3: 1 | B3: 耕地地力保护补贴 | C3: 汤伍妹 | D3: 大段村 | E3: =ROUND(G3/F3,2) -> 1 | F3: 114 | G3: 114
A4: 2 | B4: 耕地地力保护补贴 | C4: 李香梅 | D4: 大段村 | E4: =ROUND(G4/F4,2) -> 2 | F4: 114 | G4: 228
A5: 3 | B5: 耕地地力保护补贴 | C5: 蒋宗贵 | D5: 大段村 | E5: 3 | F5: 114 | G5: 342
A6: 4 | B6: 耕地地力保护补贴 | C6: 李冬生 | D6: 大段村 | E6: 1 | F6: 114 | G6: 114
A7: 5 | B7: 耕地地力保护补贴 | C7: 易贵香 | D7: 大段村 | E7: 1.5 | F7: 114 | G7: 171
A8: 6 | B8: 耕地地力保护补贴 | C8: 李仁怀 | D8: 大段村 | E8: 1 | F8: 114 | G8: 114
A9: 7 | B9: 耕地地力保护补贴 | C9: 李目庆 | D9: 大段村 | E9: 3 | F9: 114 | G9: 342
A10: 8 | B10: 耕地地力保护补贴 | C10: 李岩生 | D10: 大段村 | E10: 2 | F10: 114 | G10: 228
A11: 9 | B11: 耕地地力保护补贴 | C11: 李朝云 | D11: 大段村 | E11: 3.5 | F11: 114 | G11: 399
A12: 10 | B12: 耕地地力保护补贴 | C12: 李朝良 | D12: 大段村 | E12: 1.5 | F12: 114 | G12: 171
A13: 11 | B13: 耕地地力保护补贴 | C13: 王再龙 | D13: 大段村 | E13: 2.7 | F13: 114 | G13: 307.8
A14: 12 | B14: 耕地地力保护补贴 | C14: 汤立元 | D14: 大段村 | E14: 1 | F14: 114 | G14: 114
A15: 13 | B15: 耕地地力保护补贴 | C15: 李军 | D15: 大段村 | E15: 2 | F15: 114 | G15: 228
A16: 14 | B16: 耕地地力保护补贴 | C16: 李先明 | D16: 大段村 | E16: 1 | F16: 114 | G16: 114
A17: 15 | B17: 耕地地力保护补贴 | C17: 向光勤 | D17: 大段村 | E17: 2.5 | F17: 114 | G17: 285
A18: 16 | B18: 耕地地力保护补贴 | C18: 彭长富 | D18: 大段村 | E18: 6 | F18: 114 | G18: 684
A19: 17 | B19: 耕地地力保护补贴 | C19: 李朝江 | D19: 大段村 | E19: 0.5 | F19: 114 | G19: 57
A20: 18 | B20: 耕地地力保护补贴 | C20: 李重来 | D20: 大段村 | E20: 2 | F20: 114 | G20: 228
A21: 19 | B21: 耕地地力保护补贴 | C21: 李先星 | D21: 大段村 | E21: 3 | F21: 114 | G21: 342
A22: 20 | B22: 耕地地力保护补贴 | C22: 李承连 | D22: 大段村 | E22: 0.3 | F22: 114 | G22: 34.2
A23: 21 | B23: 耕地地力保护补贴 | C23: 向光良 | D23: 大段村 | E23: 1.5 | F23: 114 | G23: 171
A24: 22 | B24: 耕地地力保护补贴 | C24: 段青松 | D24: 大段村 | E24: 4.5 | F24: 114 | G24: 513
A25: 23 | B25: 耕地地力保护补贴 | C25: 汤立和 | D25: 大段村 | E25: 2 | F25: 114 | G25: 228
A26: 24 | B26: 耕地地力保护补贴 | C26: 李仕元 | D26: 大段村 | E26: 1 | F26: 114 | G26: 114
A27: 25 | B27: 耕地地力保护补贴 | C27: 李桂林 | D27: 大段村 | E27: 3 | F27: 114 | G27: 342
A28: 26 | B28: 耕地地力保护补贴 | C28: 李军杰 | D28: 大段村 | E28: 2 | F28: 114 | G28: 228
A29: 27 | B29: 耕地地力保护补贴 | C29: 李朝还 | D29: 大段村 | E29: 0.5 | F29: 114 | G29: 57
A30: 28 | B30: 耕地地力保护补贴 | C30: 向爱民 | D30: 大段村 | E30: 2 | F30: 114 | G30: 228
A31: 29 | B31: 耕地地力保护补贴 | C31: 段祖明 | D31: 大段村 | E31: 4 | F31: 114 | G31: 456
A32: 30 | B32: 耕地地力保护补贴 | C32: 李胜 | D32: 大段村 | E32: 1 | F32: 114 | G32: 114
A33: 31 | B33: 耕地地力保护补贴 | C33: 李朝峰 | D33: 大段村 | E33: 1 | F33: 114 | G33: 114
A34: 32 | B34: 耕地地力保护补贴 | C34: 李仁青 | D34: 大段村 | E34: 3 | F34: 114 | G34: 342
A35: 33 | B35: 耕地地力保护补贴 | C35: 蒋宗林 | D35: 大段村 | E35: 1 | F35: 114 | G35: 114
A36: 34 | B36: 耕地地力保护补贴 | C36: 李敦全 | D36: 大段村 | E36: 3 | F36: 114 | G36: 342
A37: 35 | B37: 耕地地力保护补贴 | C37: 李秀梅 | D37: 大段村 | E37: 1 | F37: 114 | G37: 114
A38: 36 | B38: 耕地地力保护补贴 | C38: 段春兰 | D38: 大段村 | E38: 1 | F38: 114 | G38: 114
A39: 37 | B39: 耕地地力保护补贴 | C39: 李目怀 | D39: 大段村 | E39: 2 | F39: 114 | G39: 228
A40: 38 | B40: 耕地地力保护补贴 | C40: 王本信 | D40: 大段村 | E40: 2 | F40: 114 | G40: 228
A41: 39 | B41: 耕地地力保护补贴 | C41: 卢明元 | D41: 大段村 | E41: 2 | F41: 114 | G41: 228
A42: 40 | B42: 耕地地力保护补贴 | C42: 卢明权 | D42: 大段村 | E42: 3 | F42: 114 | G42: 342
A43: 41 | B43: 耕地地力保护补贴 | C43: 李目生 | D43: 大段村 | E43: 1 | F43: 114 | G43: 114
A44: 42 | B44: 耕地地力保护补贴 | C44: 李目兵 | D44: 大段村 | E44: 1 | F44: 114 | G44: 114
A45: 43 | B45: 耕地地力保护补贴 | C45: 王本忠 | D45: 大段村 | E45: 2 | F45: 114 | G45: 228
A46: 44 | B46: 耕地地力保护补贴 | C46: 李敦白 | D46: 大段村 | E46: 2 | F46: 114 | G46: 228
A47: 45 | B47: 耕地地力保护补贴 | C47: 卢松青 | D47: 大段村 | E47: 3 | F47: 114 | G47: 342
A48: 46 | B48: 耕地地力保护补贴 | C48: 卢明兵 | D48: 大段村 | E48: 3 | F48: 114 | G48: 342
A49: 47 | B49: 耕地地力保护补贴 | C49: 杨远兴 | D49: 大段村 | E49: 2 | F49: 114 | G49: 228
A50: 48 | B50: 耕地地力保护补贴 | C50: 李目松 | D50: 大段村 | E50: 3 | F50: 114 | G50: 342
A51: 49 | B51: 耕地地力保护补贴 | C51: 李红光 | D51: 大段村 | E51: 3 | F51: 114 | G51: 342
A52: 50 | B52: 耕地地力保护补贴 | C52: 李敦明 | D52: 大段村 | E52: 4 | F52: 114 | G52: 456
A53: 51 | B53: 耕地地力保护补贴 | C53: 蒋秀英 | D53: 大段村 | E53: 2 | F53: 114 | G53: 228
A54: 52 | B54: 耕地地力保护补贴 | C54: 汤兰英 | D54: 大段村 | E54: 2 | F54: 114 | G54: 228
A55: 53 | B55: 耕地地力保护补贴 | C55: 李仁连 | D55: 大段村 | E55: 2 | F55: 114 | G55: 228
A56: 54 | B56: 耕地地力保护补贴 | C56: 杨春祥 | D56: 大段村 | E56: 2 | F56: 114 | G56: 228
A57: 55 | B57: 耕地地力保护补贴 | C57: 胡喜梅 | D57: 大段村 | E57: 1 | F57: 114 | G57: 114
A58: 56 | B58: 耕地地力保护补贴 | C58: 卢松云 | D58: 大段村 | E58: 2 | F58: 114 | G58: 228
A59: 57 | B59: 耕地地力保护补贴 | C59: 李目松 | D59: 大段村 | E59: 3 | F59: 114 | G59: 342
A60: 58 | B60: 耕地地力保护补贴 | C60: 卢昌元 | D60: 大段村 | E60: 1.5 | F60: 114 | G60: 171
A61: 59 | B61: 耕地地力保护补贴 | C61: 夏菊兰 | D61: 大段村 | E61: 4 | F61: 114 | G61: 456
A62: 60 | B62: 耕地地力保护补贴 | C62: 李仕权 | D62: 大段村 | E62: 3.5 | F62: 114 | G62: 399
A63: 61 | B63: 耕地地力保护补贴 | C63: 李以文 | D63: 大段村 | E63: 4 | F63: 114 | G63: 456
A64: 62 | B64: 耕地地力保护补贴 | C64: 李长青 | D64: 大段村 | E64: 1 | F64: 114 | G64: 114
A65: 63 | B65: 耕地地力保护补贴 | C65: 李以贵 | D65: 大段村 | E65: 2 | F65: 114 | G65: 228
A66: 64 | B66: 耕地地力保护补贴 | C66: 易喜松 | D66: 大段村 | E66: 3 | F66: 114 | G66: 342
A67: 65 | B67: 耕地地力保护补贴 | C67: 田武和 | D67: 大段村 | E67: 2 | F67: 114 | G67: 228
A68: 66 | B68: 耕地地力保护补贴 | C68: 李目怀 | D68: 大段村 | E68: =ROUND(G68/F68,2) -> 2.2 | F68: 114 | G68: 250.8
A69: 67 | B69: 耕地地力保护补贴 | C69: 易雪英 | D69: 大段村 | E69: 1.2 | F69: 114 | G69: 136.8
A70: 68 | B70: 耕地地力保护补贴 | C70: 田生全 | D70: 大段村 | E70: 2 | F70: 114 | G70: 228
A71: 69 | B71: 耕地地力保护补贴 | C71: 李仁海 | D71: 大段村 | E71: 3.5 | F71: 114 | G71: 399
A72: 70 | B72: 耕地地力保护补贴 | C72: 李以勤 | D72: 大段村 | E72: 1.5 | F72: 114 | G72: 171
A73: 71 | B73: 耕地地力保护补贴 | C73: 杨锡松 | D73: 大段村 | E73: 4 | F73: 114 | G73: 456
A74: 72 | B74: 耕地地力保护补贴 | C74: 易声禄 | D74: 大段村 | E74: 1.5 | F74: 114 | G74: 171
A75: 73 | B75: 耕地地力保护补贴 | C75: 李以青 | D75: 大段村 | E75: 4.4 | F75: 114 | G75: 501.6
A76: 74 | B76: 耕地地力保护补贴 | C76: 李目清 | D76: 大段村 | E76: 3.2 | F76: 114 | G76: 364.8
A77: 75 | B77: 耕地地力保护补贴 | C77: 李仕孝 | D77: 大段村 | E77: 3 | F77: 114 | G77: 342
A78: 76 | B78: 耕地地力保护补贴 | C78: 李朝友 | D78: 大段村 | E78: 1 | F78: 114 | G78: 114
A79: 77 | B79: 耕地地力保护补贴 | C79: 李目华 | D79: 大段村 | E79: 3.2 | F79: 114 | G79: 364.8
A80: 78 | B80: 耕地地力保护补贴 | C80: 田长军 | D80: 大段村 | E80: 2 | F80: 114 | G80: 228
A81: 79 | B81: 耕地地力保护补贴 | C81: 卢昌勤 | D81: 大段村 | E81: 2 | F81: 114 | G81: 228
A82: 80 | B82: 耕地地力保护补贴 | C82: 卢昌其 | D82: 大段村 | E82: 5 | F82: 114 | G82: 570
A83: 81 | B83: 耕地地力保护补贴 | C83: 汤爱珍 | D83: 大段村 | E83: 5.5 | F83: 114 | G83: 627
A84: 82 | B84: 耕地地力保护补贴 | C84: 李仁忠 | D84: 大段村 | E84: 4 | F84: 114 | G84: 456
A85: 83 | B85: 耕地地力保护补贴 | C85: 段友清 | D85: 大段村 | E85: 2 | F85: 114 | G85: 228
A86: 84 | B86: 耕地地力保护补贴 | C86: 李目辉 | D86: 大段村 | E86: 3 | F86: 114 | G86: 342
A87: 85 | B87: 耕地地力保护补贴 | C87: 李张平 | D87: 大段村 | E87: 4 | F87: 114 | G87: 456
A88: 86 | B88: 耕地地力保护补贴 | C88: 唐文贵 | D88: 大段村 | E88: 3 | F88: 114 | G88: 342
A89: 87 | B89: 耕地地力保护补贴 | C89: 田根生 | D89: 大段村 | E89: 3.5 | F89: 114 | G89: 399
A90: 88 | B90: 耕地地力保护补贴 | C90: 田长标 | D90: 大段村 | E90: 3.5 | F90: 114 | G90: 399
A91: 89 | B91: 耕地地力保护补贴 | C91: 李爱生 | D91: 大段村 | E91: 3.5 | F91: 114 | G91: 399
A92: 90 | B92: 耕地地力保护补贴 | C92: 李翠英 | D92: 大段村 | E92: 4 | F92: 114 | G92: 456
A93: 91 | B93: 耕地地力保护补贴 | C93: 李仁岩 | D93: 大段村 | E93: 1.5 | F93: 114 | G93: 171
A94: 92 | B94: 耕地地力保护补贴 | C94: 李敦和 | D94: 大段村 | E94: 8.2 | F94: 114 | G94: 934.8
A95: 93 | B95: 耕地地力保护补贴 | C95: 李朝银 | D95: 大段村 | E95: 4 | F95: 114 | G95: 456
A96: 94 | B96: 耕地地力保护补贴 | C96: 李平 | D96: 大段村 | E96: 4 | F96: 114 | G96: 456
A97: 95 | B97: 耕地地力保护补贴 | C97: 李早妹 | D97: 大段村 | E97: 2 | F97: 114 | G97: 228
A98: 96 | B98: 耕地地力保护补贴 | C98: 卢凤文 | D98: 大段村 | E98: 4 | F98: 114 | G98: 456
A99: 97 | B99: 耕地地力保护补贴 | C99: 李先华 | D99: 大段村 | E99: 3 | F99: 114 | G99: 342
A100: 98 | B100: 耕地地力保护补贴 | C100: 谢赛英 | D100: 大段村 | E100: 2 | F100: 114 | G100: 228
A101: 99 | B101: 耕地地力保护补贴 | C101: 卢昌建 | D101: 大段村 | E101: 2 | F101: 114 | G101: 228
A102: 100 | B102: 耕地地力保护补贴 | C102: 陈红 | D102: 大段村 | E102: 3 | F102: 114 | G102: 342
A103: 101 | B103: 耕地地力保护补贴 | C103: 李以林 | D103: 大段村 | E103: 4 | F103: 114 | G103: 456
A104: 102 | B104: 耕地地力保护补贴 | C104: 卢昌武 | D104: 大段村 | E104: 6 | F104: 114 | G104: 684
A105: 103 | B105: 耕地地力保护补贴 | C105: 涂远贵 | D105: 大段村 | E105: 6 | F105: 114 | G105: 684
A106: 104 | B106: 耕地地力保护补贴 | C106: 易冬兰 | D106: 大段村 | E106: 3 | F106: 114 | G106: 342
A107: 105 | B107: 耕地地力保护补贴 | C107: 李仁付 | D107: 大段村 | E107: 3 | F107: 114 | G107: 342
A108: 106 | B108: 耕地地力保护补贴 | C108: 李仁喜 | D108: 大段村 | E108: 2 | F108: 114 | G108: 228
A109: 107 | B109: 耕地地力保护补贴 | C109: 李朝林 | D109: 大段村 | E109: 4 | F109: 114 | G109: 456
A110: 108 | B110: 耕地地力保护补贴 | C110: 李泽林 | D110: 大段村 | E110: 1 | F110: 114 | G110: 114
A111: 109 | B111: 耕地地力保护补贴 | C111: 易小梅 | D111: 大段村 | E111: 12 | F111: 114 | G111: 1368
A112: 110 | B112: 耕地地力保护补贴 | C112: 蒋益贵 | D112: 大段村 | E112: 1 | F112: 114 | G112: 114
A113: 111 | B113: 耕地地力保护补贴 | C113: 杨仁和 | D113: 大段村 | E113: 3 | F113: 114 | G113: 342
A114: 112 | B114: 耕地地力保护补贴 | C114: 向爱和 | D114: 大段村 | E114: 2 | F114: 114 | G114: 228
A115: 113 | B115: 耕地地力保护补贴 | C115: 杨云孟 | D115: 大段村 | E115: 1 | F115: 114 | G115: 114
A116: 114 | B116: 耕地地力保护补贴 | C116: 唐照鸣 | D116: 大段村 | E116: 4 | F116: 114 | G116: 456
A117: 115 | B117: 耕地地力保护补贴 | C117: 李朝林 | D117: 大段村 | E117: 6 | F117: 114 | G117: 684
A118: 116 | B118: 耕地地力保护补贴 | C118: 向兰英 | D118: 大段村 | E118: 3 | F118: 114 | G118: 342
A119: 117 | B119: 耕地地力保护补贴 | C119: 李爱平 | D119: 大段村 | E119: 1 | F119: 114 | G119: 114
A120: 118 | B120: 耕地地力保护补贴 | C120: 蒋小龙 | D120: 大段村 | E120: 1.5 | F120: 114 | G120: 171
A121: 119 | B121: 耕地地力保护补贴 | C121: 段承军 | D121: 大段村 | E121: 1 | F121: 114 | G121: 114
A122: 120 | B122: 耕地地力保护补贴 | C122: 向孙和 | D122: 大段村 | E122: 2 | F122: 114 | G122: 228
A123: 121 | B123: 耕地地力保护补贴 | C123: 汤立发 | D123: 大段村 | E123: 3 | F123: 114 | G123: 342
A124: 122 | B124: 耕地地力保护补贴 | C124: 段元贵 | D124: 大段村 | E124: 1 | F124: 114 | G124: 114
A125: 123 | B125: 耕地地力保护补贴 | C125: 胡友发 | D125: 大段村 | E125: 4 | F125: 114 | G125: 456
A126: 124 | B126: 耕地地力保护补贴 | C126: 段菊芳 | D126: 大段村 | E126: 1 | F126: 114 | G126: 114
A127: 125 | B127: 耕地地力保护补贴 | C127: 向孙元 | D127: 大段村 | E127: 2 | F127: 114 | G127: 228
A128: 126 | B128: 耕地地力保护补贴 | C128: 向孙友 | D128: 大段村 | E128: 2 | F128: 114 | G128: 228
A129: 127 | B129: 耕地地力保护补贴 | C129: 蒋益沅 | D129: 大段村 | E129: 1 | F129: 114 | G129: 114
A130: 128 | B130: 耕地地力保护补贴 | C130: 胡大清 | D130: 大段村 | E130: 4 | F130: 114 | G130: 456
A131: 129 | B131: 耕地地力保护补贴 | C131: 蒋益友 | D131: 大段村 | E131: 2 | F131: 114 | G131: 228
A132: 130 | B132: 耕地地力保护补贴 | C132: 唐光烈 | D132: 大段村 | E132: =ROUND(G132/F132,2) -> 6 | F132: 114 | G132: 684
A133: 131 | B133: 耕地地力保护补贴 | C133: 蒋益清 | D133: 大段村 | E133: 2 | F133: 114 | G133: 228
A134: 132 | B134: 耕地地力保护补贴 | C134: 汤松柏 | D134: 大段村 | E134: 2 | F134: 114 | G134: 228
A135: 133 | B135: 耕地地力保护补贴 | C135: 汤明友 | D135: 大段村 | E135: 1 | F135: 114 | G135: 114
A136: 134 | B136: 耕地地力保护补贴 | C136: 向孙财 | D136: 大段村 | E136: 4 | F136: 114 | G136: 456
A137: 135 | B137: 耕地地力保护补贴 | C137: 肖喜清 | D137: 大段村 | E137: 3.5 | F137: 114 | G137: 399
A138: 136 | B138: 耕地地力保护补贴 | C138: 易宏昊 | D138: 大段村 | E138: 2 | F138: 114 | G138: 228
A139: 137 | B139: 耕地地力保护补贴 | C139: 李群 | D139: 大段村 | E139: 2.5 | F139: 114 | G139: 285
A140: 138 | B140: 耕地地力保护补贴 | C140: 李仁玉 | D140: 大段村 | E140: 2 | F140: 114 | G140: 228
A141: 139 | B141: 耕地地力保护补贴 | C141: 段承旺 | D141: 大段村 | E141: 2.7 | F141: 114 | G141: 307.8
A142: 140 | B142: 耕地地力保护补贴 | C142: 黄成军 | D142: 大段村 | E142: 3 | F142: 114 | G142: 342
A143: 141 | B143: 耕地地力保护补贴 | C143: 段发青 | D143: 大段村 | E143: 3 | F143: 114 | G143: 342
A144: 142 | B144: 耕地地力保护补贴 | C144: 易图勇 | D144: 大段村 | E144: 4.5 | F144: 114 | G144: 513
A145: 143 | B145: 耕地地力保护补贴 | C145: 段喜青 | D145: 大段村 | E145: 3 | F145: 114 | G145: 342
A146: 144 | B146: 耕地地力保护补贴 | C146: 段爱青 | D146: 大段村 | E146: 6 | F146: 114 | G146: 684
A147: 145 | B147: 耕地地力保护补贴 | C147: 段承松 | D147: 大段村 | E147: 3 | F147: 114 | G147: 342
A148: 146 | B148: 耕地地力保护补贴 | C148: 李朝光 | D148: 大段村 | E148: 3 | F148: 114 | G148: 342
A149: 147 | B149: 耕地地力保护补贴 | C149: 杨宏林 | D149: 大段村 | E149: 3 | F149: 114 | G149: 342
A150: 148 | B150: 耕地地力保护补贴 | C150: 李勇军 | D150: 大段村 | E150: 1 | F150: 114 | G150: 114
A151: 149 | B151: 耕地地力保护补贴 | C151: 李朝亮 | D151: 大段村 | E151: 2 | F151: 114 | G151: 228
A152: 150 | B152: 耕地地力保护补贴 | C152: 易重振 | D152: 大段村 | E152: 5 | F152: 114 | G152: 570
A153: 151 | B153: 耕地地力保护补贴 | C153: 杨春毛 | D153: 大段村 | E153: 3 | F153: 114 | G153: 342
A154: 152 | B154: 耕地地力保护补贴 | C154: 李朝元 | D154: 大段村 | E154: 2 | F154: 114 | G154: 228
A155: 153 | B155: 耕地地力保护补贴 | C155: 李勇 | D155: 大段村 | E155: 1 | F155: 114 | G155: 114
A156: 154 | B156: 耕地地力保护补贴 | C156: 李东霖 | D156: 大段村 | E156: 2 | F156: 114 | G156: 228
A157: 155 | B157: 耕地地力保护补贴 | C157: 易继保 | D157: 大段村 | E157: 1 | F157: 114 | G157: 114
A158: 156 | B158: 耕地地力保护补贴 | C158: 向孙银 | D158: 大段村 | E158: 2 | F158: 114 | G158: 228
A159: 157 | B159: 耕地地力保护补贴 | C159: 舒青来 | D159: 大段村 | E159: 2 | F159: 114 | G159: 228
A160: 158 | B160: 耕地地力保护补贴 | C160: 田少平 | D160: 大段村 | E160: 1 | F160: 114 | G160: 114
A161: 159 | B161: 耕地地力保护补贴 | C161: 舒均兰 | D161: 大段村 | E161: 2.5 | F161: 114 | G161: 285
A162: 160 | B162: 耕地地力保护补贴 | C162: 舒青奇 | D162: 大段村 | E162: 1.5 | F162: 114 | G162: 171
A163: 161 | B163: 耕地地力保护补贴 | C163: 舒青中 | D163: 大段村 | E163: 1.5 | F163: 114 | G163: 171
A164: 162 | B164: 耕地地力保护补贴 | C164: 舒爱桃 | D164: 大段村 | E164: 1.5 | F164: 114 | G164: 171
A165: 163 | B165: 耕地地力保护补贴 | C165: 易重宜 | D165: 大段村 | E165: 3 | F165: 114 | G165: 342
A166: 164 | B166: 耕地地力保护补贴 | C166: 易秀兰 | D166: 大段村 | E166: 2 | F166: 114 | G166: 228
A167: 165 | B167: 耕地地力保护补贴 | C167: 赵隆海 | D167: 大段村 | E167: 4 | F167: 114 | G167: 456
A168: 166 | B168: 耕地地力保护补贴 | C168: 舒彩银 | D168: 大段村 | E168: 1 | F168: 114 | G168: 114
A169: 167 | B169: 耕地地力保护补贴 | C169: 舒长根 | D169: 大段村 | E169: 1.5 | F169: 114 | G169: 171
A170: 168 | B170: 耕地地力保护补贴 | C170: 向其清 | D170: 大段村 | E170: 1 | F170: 114 | G170: 114
A171: 169 | B171: 耕地地力保护补贴 | C171: 舒长松 | D171: 大段村 | E171: 2.5 | F171: 114 | G171: 285
A172: 170 | B172: 耕地地力保护补贴 | C172: 李泽连 | D172: 大段村 | E172: 1 | F172: 114 | G172: 114
A173: 171 | B173: 耕地地力保护补贴 | C173: 杨开顺 | D173: 大段村 | E173: 3 | F173: 114 | G173: 342
A174: 172 | B174: 耕地地力保护补贴 | C174: 易声喜 | D174: 大段村 | E174: 2 | F174: 114 | G174: 228
A175: 173 | B175: 耕地地力保护补贴 | C175: 杨楚华 | D175: 大段村 | E175: 3 | F175: 114 | G175: 342
A176: 174 | B176: 耕地地力保护补贴 | C176: 向松英 | D176: 大段村 | E176: 2.5 | F176: 114 | G176: 285
A177: 175 | B177: 耕地地力保护补贴 | C177: 田文龙 | D177: 大段村 | E177: 4 | F177: 114 | G177: 456
A178: 176 | B178: 耕地地力保护补贴 | C178: 李九妹 | D178: 大段村 | E178: 2.5 | F178: 114 | G178: 285
A179: 177 | B179: 耕地地力保护补贴 | C179: 李加良 | D179: 大段村 | E179: 2 | F179: 114 | G179: 228
A180: 178 | B180: 耕地地力保护补贴 | C180: 杨思传 | D180: 大段村 | E180: 1 | F180: 114 | G180: 114
A181: 179 | B181: 耕地地力保护补贴 | C181: 田武松 | D181: 大段村 | E181: 2.2 | F181: 114 | G181: 250.8
A182: 180 | B182: 耕地地力保护补贴 | C182: 杨永鸿 | D182: 大段村 | E182: 1 | F182: 114 | G182: 114
A183: 181 | B183: 耕地地力保护补贴 | C183: 杨永生 | D183: 大段村 | E183: 1 | F183: 114 | G183: 114
A184: 182 | B184: 耕地地力保护补贴 | C184: 田文忠 | D184: 大段村 | E184: 2 | F184: 114 | G184: 228
A185: 183 | B185: 耕地地力保护补贴 | C185: 易声寿 | D185: 大段村 | E185: 0.5 | F185: 114 | G185: 57
A186: 184 | B186: 耕地地力保护补贴 | C186: 杨春求 | D186: 大段村 | E186: 2.5 | F186: 114 | G186: 285
A187: 185 | B187: 耕地地力保护补贴 | C187: 杨春连 | D187: 大段村 | E187: 2 | F187: 114 | G187: 228
A188: 186 | B188: 耕地地力保护补贴 | C188: 杨成林 | D188: 大段村 | E188: 1 | F188: 114 | G188: 114
A189: 187 | B189: 耕地地力保护补贴 | C189: 杨开绪 | D189: 大段村 | E189: 1 | F189: 114 | G189: 114
A190: 188 | B190: 耕地地力保护补贴 | C190: 田文献 | D190: 大段村 | E190: 1.5 | F190: 114 | G190: 171
A191: 189 | B191: 耕地地力保护补贴 | C191: 蒋宗发 | D191: 大段村 | E191: 2.8 | F191: 114 | G191: 319.2
A192: 190 | B192: 耕地地力保护补贴 | C192: 易图龙 | D192: 大段村 | E192: 3 | F192: 114 | G192: 342
A193: 191 | B193: 耕地地力保护补贴 | C193: 易兴发 | D193: 大段村 | E193: 6.5 | F193: 114 | G193: 741
A194: 192 | B194: 耕地地力保护补贴 | C194: 段招华 | D194: 大段村 | E194: 2.5 | F194: 114 | G194: 285
A195: 193 | B195: 耕地地力保护补贴 | C195: 李美容 | D195: 大段村 | E195: 4 | F195: 114 | G195: 456
A196: 194 | B196: 耕地地力保护补贴 | C196: 蒋宗荣 | D196: 大段村 | E196: =ROUND(G196/F196,2) -> 1 | F196: 114 | G196: 114
A197: 195 | B197: 耕地地力保护补贴 | C197: 卢元其 | D197: 大段村 | E197: 7.5 | F197: 114 | G197: 855
A198: 196 | B198: 耕地地力保护补贴 | C198: 汤秋香 | D198: 大段村 | E198: 3.5 | F198: 114 | G198: 399
A199: 197 | B199: 耕地地力保护补贴 | C199: 易图文 | D199: 大段村 | E199: 3 | F199: 114 | G199: 342
A200: 198 | B200: 耕地地力保护补贴 | C200: 易圣兰 | D200: 大段村 | E200: 2 | F200: 114 | G200: 228
... 1591 more rows
